fUSD/lending_fUSD_20250109
["ID","MTS","AMOUNT","RATE_DAILY","PERIOD"]
[348234865,1736410239190,-500.0,9.989e-05,2]
[348234867,1736410239199,-500.0,9.989e-05,2]
[348234869,1736410239208,-500.0,9.989e-05,2]
[348234871,1736410239217,-500.0,9.989e-05,2]
[348234873,1736410239226,-500.0,9.989e-05,2]
[348234874,1736410239235,-200.64460464,9.989e-05,2]
[348234876,1736410239244,-500.0,9.989e-05,2]
[348234878,1736410239254,-500.0,9.989e-05,2]
[348234880,1736410239263,-500.0,9.989e-05,2]
[348234882,1736410239272,-500.0,9.989e-05,2]
[348234884,1736410239281,-502.84837389,9.989e-05,2]
[348234886,1736410239290,-500.0,9.989e-05,2]
[348234888,1736410239299,-500.0,9.989e-05,2]
[348234890,1736410239309,-500.0,9.989e-05,2]
[348234892,1736410239319,-261.43185563,9.989e-05,2]
[348234894,1736410239328,-500.0,9.989e-05,2]
[348234896,1736410239337,-500.0,9.989e-05,2]
[348234898,1736410239347,-500.0,9.989e-05,2]
[348234900,1736410239356,-500.0,9.989e-05,2]
[348234902,1736410239365,-500.0,9.989e-05,2]
[348234904,1736410239374,-500.0,9.989e-05,2]
[348234906,1736410239383,-500.0,9.989e-05,2]
[348234908,1736410239393,-500.0,9.989e-05,2]
[348234910,1736410239402,-507.06746048,9.989e-05,2]
[348234912,1736410239413,-500.0,9.989e-05,2]
[348234914,1736410239422,-500.0,9.989e-05,2]
[348234916,1736410239431,-500.0,9.989e-05,2]
[348234918,1736410239441,-500.0,9.989e-05,2]
[348234920,1736410239450,-500.0,9.989e-05,2]
[348234922,1736410239460,-284.2205425,9.989e-05,2]
[348234924,1736410239469,-500.0,9.989e-05,2]
[348234926,1736410239479,-625.635031,9.989e-05,2]
[348234928,1736410239488,-500.0,9.989e-05,2]
[348234930,1736410239497,-500.0,9.989e-05,2]
[348234932,1736410239506,-236.70713559,9.989e-05,2]
[348234934,1736410239515,-151.16618577,9.989e-05,2]
[348234936,1736410239525,-500.0,9.989e-05,2]
[348234938,1736410239535,-500.0,9.989e-05,2]
[348234940,1736410239544,-500.0,9.989e-05,2]
[348234942,1736410239553,-500.0,9.989e-05,2]
[348234944,1736410239562,-500.0,9.989e-05,2]
[348234946,1736410239571,-500.0,9.989e-05,2]
[348234948,1736410239580,-695.42905,9.989e-05,2]
[348234950,1736410239589,-500.0,9.989e-05,2]
[348234952,1736410239597,-500.0,9.989e-05,2]
[348234954,1736410239606,-500.0,9.989e-05,2]
[348234956,1736410239615,-500.0,9.989e-05,2]
[348234958,1736410239624,-500.0,9.989e-05,2]
[348234960,1736410239633,-500.0,9.989e-05,2]
[348234962,1736410239642,-500.0,9.989e-05,2]
[348234964,1736410239651,-500.0,9.989e-05,2]
[348234966,1736410239661,-500.0,9.989e-05,2]
[348234968,1736410239670,-500.0,9.989e-05,2]
[348234970,1736410239679,-500.0,9.989e-05,2]
[348234972,1736410239688,-500.0,9.989e-05,2]
[348234974,1736410239697,-502.9564839,9.989e-05,2]
[348234976,1736410239706,-500.0,9.989e-05,2]
[348234978,1736410239715,-500.0,9.989e-05,2]
[348234980,1736410239725,-593.91740597,9.989e-05,2]
[348234982,1736410239734,-500.0,9.989e-05,2]
[348234984,1736410239743,-547.86,9.989e-05,2]
[348234986,1736410239753,-500.0,9.989e-05,2]
[348234988,1736410239762,-500.0,9.989e-05,2]
[348234990,1736410239771,-500.0,9.989e-05,2]
[348234992,1736410239781,-500.0,9.989e-05,2]
[348234994,1736410239790,-500.0,9.989e-05,2]
[348234996,1736410239799,-500.0,9.989e-05,2]
[348234998,1736410239808,-500.0,9.989e-05,2]
[348235000,1736410239817,-500.0,9.989e-05,2]
[348235002,1736410239826,-500.0,9.989e-05,2]
[348235004,1736410239835,-500.0,9.989e-05,2]
[348235006,1736410239844,-500.0,9.989e-05,2]
[348235008,1736410239853,-500.0,9.989e-05,2]
[348235010,1736410239862,-500.0,9.989e-05,2]
[348235012,1736410239872,-500.0,9.989e-05,2]
[348235014,1736410239880,-683.65,9.989e-05,2]
[348235016,1736410239890,-489.47,9.989e-05,2]
[348235018,1736410239899,-500.0,9.989e-05,2]
[348235020,1736410239910,-508.576083,9.989e-05,2]
[348235022,1736410239919,-500.0,9.989e-05,2]
[348235024,1736410239929,-502.40585016,9.989e-05,2]
[348235026,1736410239942,-505.21314064,9.989e-05,2]
[348235028,1736410239951,-500.0,9.989e-05,2]
[348235031,1736410239961,-500.0,9.989e-05,2]
[348235033,1736410239971,-500.0,9.989e-05,2]
[348235035,1736410239982,-500.0,9.989e-05,2]
[348235037,1736410239991,-500.0,9.989e-05,2]
[348235039,1736410240001,-500.0,9.989e-05,2]
[348235041,1736410240011,-500.0,9.989e-05,2]
[348235044,1736410240020,-502.58704382,9.989e-05,2]
[348235046,1736410240029,-500.0,9.989e-05,2]
[348235048,1736410240039,-500.0,9.989e-05,2]
[348235050,1736410240048,-603.95208497,9.989e-05,2]
[348235052,1736410240058,-500.0,9.989e-05,2]
[348235054,1736410240068,-500.0,9.989e-05,2]
[348235056,1736410240077,-1760.7,9.989e-05,2]
[348235058,1736410240087,-500.0,9.989e-05,2]
[348235061,1736410240097,-500.0,9.989e-05,2]
[348235063,1736410240106,-500.0,9.989e-05,2]
[348235065,1736410240115,-500.0,9.989e-05,2]
[348235067,1736410240123,-500.0,9.989e-05,2]
[348235069,1736410240133,-500.0,9.989e-05,2]
[348235071,1736410240142,-500.0,9.989e-05,2]
[348235073,1736410240152,-500.0,9.989e-05,2]
[348235076,1736410240169,-500.0,9.989e-05,2]
[348235078,1736410240179,-500.0,9.989e-05,2]
[348235080,1736410240189,-500.0,9.989e-05,2]
[348235082,1736410240198,-500.0,9.989e-05,2]
[348235084,1736410240209,-297.42,9.989e-05,2]
[348235086,1736410240219,-500.0,9.989e-05,2]
[348235088,1736410240228,-500.0,9.989e-05,2]
[348235090,1736410240238,-500.0,9.989e-05,2]
[348235092,1736410240246,-500.0,9.989e-05,2]
[348235094,1736410240256,-500.0,9.989e-05,2]
[348235096,1736410240265,-500.0,9.989e-05,2]
[348235098,1736410240274,-500.0,9.989e-05,2]
[348235100,1736410240283,-1386.23,9.989e-05,2]
[348235102,1736410240293,-500.0,9.989e-05,2]
[348235104,1736410240303,-1284.09,9.989e-05,2]
[348235106,1736410240312,-609.48968497,9.989e-05,2]
[348235108,1736410240322,-500.0,9.989e-05,2]
[348235110,1736410240331,-500.0,9.989e-05,2]
[348235112,1736410240340,-500.0,9.989e-05,2]
[348235114,1736410240349,-500.0,9.989e-05,2]
[348235116,1736410240358,-500.0,9.989e-05,2]
[348235118,1736410240367,-500.0,9.989e-05,2]
[348235120,1736410240376,-1385.86,9.989e-05,2]
[348235122,1736410240386,-500.0,9.989e-05,2]
[348235124,1736410240395,-500.0,9.989e-05,2]
[348235126,1736410240409,-154.37424,9.989e-05,2]
[348235128,1736410240419,-500.0,9.989e-05,2]
[348235130,1736410240428,-500.0,9.989e-05,2]
[348235132,1736410240437,-500.0,9.989e-05,2]
[348235134,1736410240447,-500.0,9.989e-05,2]
[348235136,1736410240457,-500.0,9.989e-05,2]
[348235138,1736410240466,-500.0,9.989e-05,2]
[348235140,1736410240475,-500.0,9.989e-05,2]
[348235142,1736410240484,-500.0,9.989e-05,2]
[348235144,1736410240493,-500.0,9.989e-05,2]
[348235146,1736410240503,-500.0,9.989e-05,2]
[348235148,1736410240511,-500.0,9.989e-05,2]
[348235149,1736410240521,-500.0,9.989e-05,2]
[348235151,1736410240530,-500.0,9.989e-05,2]
[348235153,1736410240540,-510.30934668,9.989e-05,2]
[348235156,1736410240550,-500.0,9.989e-05,2]
[348235158,1736410240559,-500.0,9.989e-05,2]
[348235160,1736410240568,-500.0,9.989e-05,2]
[348235162,1736410240577,-500.0,9.989e-05,2]
[348235163,1736410240586,-500.0,9.989e-05,2]
[348235166,1736410240596,-500.0,9.989e-05,2]
[348235167,1736410240605,-500.0,9.989e-05,2]
[348235169,1736410240615,-500.0,9.989e-05,2]
[348235171,1736410240624,-500.0,9.989e-05,2]
[348235173,1736410240633,-500.0,9.989e-05,2]
[348235176,1736410240642,-500.0,9.989e-05,2]
[348235198,1736410240841,-500.0,9.989e-05,2]
[348235200,1736410240850,-500.0,9.989e-05,2]
[348235202,1736410240860,-500.0,9.989e-05,2]
[348235204,1736410240869,-500.0,9.989e-05,2]
[348235206,1736410240878,-500.0,9.989e-05,2]
[348235208,1736410240889,-500.0,9.989e-05,2]
[348235210,1736410240898,-505.98215557,9.989e-05,2]
[348235212,1736410240910,-500.0,9.989e-05,2]
[348235214,1736410240919,-500.0,9.989e-05,2]
[348235216,1736410240930,-500.0,9.989e-05,2]
[348235218,1736410240942,-500.0,9.989e-05,2]
[348235220,1736410240951,-500.0,9.989e-05,2]
[348235222,1736410240960,-500.0,9.989e-05,2]
[348235224,1736410240970,-491.71625107,9.989e-05,2]
[348235226,1736410240981,-169.99,9.989e-05,2]
[348235228,1736410240990,-500.0,9.989e-05,2]
[348235230,1736410240999,-500.0,9.989e-05,2]
[348235232,1736410241009,-404.68364261,9.989e-05,2]
[348235234,1736410241018,-1387.63,9.989e-05,2]
[348235236,1736410241027,-572.73749973,9.989e-05,2]
[348235238,1736410241036,-500.0,9.989e-05,2]
[348235240,1736410241046,-500.0,9.989e-05,2]
[348235243,1736410241056,-296.06491932,9.989e-05,2]
[348235245,1736410241066,-300.64505811,9.989e-05,2]
[348235247,1736410241075,-500.0,9.989e-05,2]
[348235249,1736410241085,-507.05251194,9.989e-05,2]
[348235251,1736410241094,-508.46936463,9.989e-05,2]
[348235253,1736410241104,-500.0,9.989e-05,2]
[348235255,1736410241114,-513.1959876,9.989e-05,2]
[348235257,1736410241123,-500.0,9.989e-05,2]
[348235258,1736410241132,-500.0,9.989e-05,2]
[348235259,1736410241142,-500.0,9.989e-05,2]
[348235260,1736410241151,-500.0,9.989e-05,2]
[348235261,1736410241167,-253.27446141,9.989e-05,2]
[348235262,1736410241176,-500.0,9.989e-05,2]
[348235263,1736410241186,-500.0,9.989e-05,2]
[348235264,1736410241195,-500.0,9.989e-05,2]
[348235265,1736410241205,-220.62720128,9.989e-05,2]
[348235267,1736410241216,-354.67036701,9.989e-05,2]
[348235269,1736410241226,-500.0,9.989e-05,2]
[348235271,1736410241236,-500.0,9.989e-05,2]
[348235273,1736410241245,-500.0,9.989e-05,2]
[348235275,1736410241254,-561.04,9.989e-05,2]
[348235277,1736410241264,-513.44790389,9.989e-05,2]
[348235279,1736410241273,-500.0,9.989e-05,2]
[348235281,1736410241282,-500.0,9.989e-05,2]
[348235283,1736410241291,-500.0,9.989e-05,2]
[348235285,1736410241300,-500.0,9.989e-05,2]
[348235287,1736410241310,-500.0,9.989e-05,2]
[348235289,1736410241318,-500.0,9.989e-05,2]
[348235291,1736410241328,-282.05822708,9.989e-05,2]
[348235293,1736410241337,-500.0,9.989e-05,2]
[348235295,1736410241346,-500.0,9.989e-05,2]
[348235297,1736410241355,-579.28431244,9.989e-05,2]
[348235299,1736410241364,-500.0,9.989e-05,2]
[348235300,1736410241373,-500.0,9.989e-05,2]
[348235302,1736410241382,-500.0,9.989e-05,2]
[348235304,1736410241391,-500.0,9.989e-05,2]
[348235307,1736410241401,-500.0,9.989e-05,2]
[348235308,1736410241414,-500.0,9.989e-05,2]
[348235310,1736410241423,-799.56,9.989e-05,2]
[348235313,1736410241433,-500.0,9.989e-05,2]
[348235314,1736410241442,-500.0,9.989e-05,2]
[348235316,1736410241451,-500.0,9.989e-05,2]
[348235318,1736410241461,-500.0,9.989e-05,2]
[348235320,1736410241470,-500.0,9.989e-05,2]
[348235322,1736410241479,-500.0,9.989e-05,2]
[348235324,1736410241488,-500.0,9.989e-05,2]
[348235326,1736410241498,-770.75,9.989e-05,2]
[348235328,1736410241507,-500.0,9.989e-05,2]
[348235330,1736410241516,-500.0,9.989e-05,2]
[348235332,1736410241527,-500.0,9.989e-05,2]
[348235334,1736410241536,-500.0,9.989e-05,2]
[348235336,1736410241545,-500.0,9.989e-05,2]
[348235338,1736410241554,-500.0,9.989e-05,2]
[348235340,1736410241563,-500.0,9.989e-05,2]
[348235342,1736410241572,-500.0,9.989e-05,2]
[348235344,1736410241581,-613.57961508,9.989e-05,2]
[348235346,1736410241591,-500.0,9.989e-05,2]
[348235348,1736410241600,-528.12,9.989e-05,2]
[348235350,1736410241610,-162.64530288,9.99e-05,2]
[348235352,1736410241621,-1193.74,9.99e-05,2]
[348235355,1736410241631,-779.39,9.99e-05,2]
[348235357,1736410241642,-1709.38,9.99e-05,2]
[348235358,1736410241651,-755.91,9.99e-05,2]
[348235361,1736410241665,-1455.1,9.99e-05,2]
[348235363,1736410241674,-1413.28,9.99e-05,2]
[348235365,1736410241684,-500.0,9.99e-05,2]
[348235367,1736410241693,-613.4,9.99e-05,2]
[348235368,1736410241702,-500.0,9.991e-05,2]
[348235371,1736410241712,-414.09113824,9.991e-05,2]
[348235373,1736410241721,-501.16813559,9.991e-05,2]
[348235375,1736410241730,-500.50045535,9.991e-05,2]
[348235377,1736410241739,-152.518603,9.991e-05,2]
[348235379,1736410241749,-500.65614294,9.991e-05,2]
[348235381,1736410241758,-500.0,9.991e-05,2]
[348235382,1736410241767,-500.0,9.991e-05,2]
[348235384,1736410241776,-589.65026765,9.991e-05,2]
[348235386,1736410241785,-500.0,9.991e-05,2]
[348235388,1736410241795,-530.58277127,9.991e-05,2]
[348235390,1736410241804,-500.0,9.991e-05,2]
[348235392,1736410241813,-493.56737172,9.991e-05,2]
[348235395,1736410241823,-168.26303724,9.991e-05,2]
[348235396,1736410241832,-500.0,9.991e-05,2]
[348235399,1736410241842,-171.47957221,9.991e-05,2]
[348235400,1736410241851,-277.64197781,9.991e-05,2]
[348235402,1736410241860,-500.0,9.991e-05,2]
[348235404,1736410241870,-500.0,9.991e-05,2]
[348235406,1736410241878,-500.0,9.991e-05,2]
[348235409,1736410241888,-500.0,9.991e-05,2]
[348235410,1736410241897,-500.0,9.991e-05,2]
[348235412,1736410241908,-500.0,9.991e-05,2]
[348235414,1736410241917,-500.0,9.991e-05,2]
[348235417,1736410241927,-500.0,9.991e-05,2]
[348235418,1736410241939,-500.53536322,9.991e-05,2]
[348235420,1736410241948,-206.27812766,9.991e-05,2]
[348235423,1736410241958,-500.0,9.991e-05,2]
[348235424,1736410241967,-500.0,9.991e-05,2]
[348235427,1736410241977,-500.0,9.991e-05,2]
[348235429,1736410241987,-500.0,9.991e-05,2]
[348235431,1736410241996,-500.0,9.991e-05,2]
[348235433,1736410242007,-500.0,9.991e-05,2]
[348235435,1736410242016,-500.0,9.991e-05,2]
[348235437,1736410242026,-501.29240161,9.991e-05,2]
[348235439,1736410242035,-500.0,9.991e-05,2]
[348235441,1736410242044,-232.81526744,9.991e-05,2]
[348235443,1736410242053,-500.0,9.991e-05,2]
[348235445,1736410242063,-500.0,9.991e-05,2]
[348235447,1736410242072,-500.0,9.991e-05,2]
[348235449,1736410242082,-500.0,9.991e-05,2]
[348235451,1736410242091,-503.46963081,9.991e-05,2]
[348235453,1736410242100,-500.0,9.991e-05,2]
[348235455,1736410242109,-451.80807502,9.991e-05,2]
[348235457,1736410242119,-500.0,9.991e-05,2]
[348235459,1736410242128,-500.0,9.991e-05,2]
[348235461,1736410242137,-500.0,9.991e-05,2]
[348235463,1736410242146,-500.0,9.991e-05,2]
[348235465,1736410242158,-500.0,9.991e-05,2]
[348235467,1736410242167,-500.0,9.991e-05,2]
[348235469,1736410242177,-500.0,9.991e-05,2]
[348235471,1736410242187,-500.0,9.991e-05,2]
[348235472,1736410242196,-500.0,9.991e-05,2]
[348235475,1736410242206,-500.0,9.991e-05,2]
[348235477,1736410242217,-500.0,9.991e-05,2]
[348235478,1736410242226,-500.0,9.991e-05,2]
[348235480,1736410242235,-500.0,9.991e-05,2]
[348235482,1736410242244,-500.0,9.991e-05,2]
[348235484,1736410242253,-500.0,9.991e-05,2]
[348235486,1736410242263,-500.0,9.991e-05,2]
[348235489,1736410242272,-365.80999798,9.991e-05,2]
[348235490,1736410242281,-500.0,9.991e-05,2]
[348235492,1736410242290,-500.0,9.991e-05,2]
[348235494,1736410242299,-500.0,9.991e-05,2]
[348235496,1736410242309,-500.0,9.991e-05,2]
[348235498,1736410242318,-500.0,9.991e-05,2]
[348235500,1736410242328,-500.0,9.991e-05,2]
[348235502,1736410242337,-500.0,9.991e-05,2]
[348235504,1736410242346,-500.0,9.991e-05,2]
[348235506,1736410242355,-500.0,9.991e-05,2]
[348235508,1736410242365,-500.0,9.991e-05,2]
[348235510,1736410242375,-500.0,9.991e-05,2]
[348235513,1736410242384,-500.0,9.991e-05,2]
[348235515,1736410242394,-500.0,9.991e-05,2]
[348235517,1736410242403,-500.0,9.991e-05,2]
[348235519,1736410242415,-500.0,9.991e-05,2]
[348235521,1736410242424,-500.0,9.991e-05,2]
[348235523,1736410242434,-500.0,9.991e-05,2]
[348235525,1736410242444,-500.0,9.991e-05,2]
[348235527,1736410242453,-610.05,9.992e-05,2]
[348235528,1736410242462,-823.17794707,9.992e-05,2]
[348235560,1736410242737,-160.84205293,9.992e-05,2]
[348235562,1736410242747,-668.25,9.992e-05,2]
[348235564,1736410242756,-1677.4,9.992e-05,2]
[348235566,1736410242766,-733.11,9.992e-05,2]
[348235568,1736410242775,-554.59,9.992e-05,2]
[348235570,1736410242785,-562.76,9.992e-05,2]
[348235572,1736410242794,-921.45,9.992e-05,2]
[348235574,1736410242803,-452.57050047,9.992e-05,2]
[348235576,1736410242814,-282.55999991,9.992e-05,2]
[348235610,1736410243065,-445.62408891,9.988e-05,2]
[348235612,1736410243076,-54.37591109,9.988e-05,2]
[348235615,1736410243085,-563.21949962,9.992e-05,2]
[348235617,1736410243094,-571.21,9.992e-05,2]
[348235619,1736410243103,-518.97,9.992e-05,2]
[348235622,1736410243112,-500.0,9.992e-05,2]
[348235624,1736410243122,-628.1,9.992e-05,2]
[348235627,1736410243131,-500.0,9.992e-05,2]
[348235630,1736410243140,-2755.49,9.993e-05,2]
[348235633,1736410243150,-500.0,9.993e-05,2]
[348235635,1736410243161,-500.0,9.993e-05,2]
[348235637,1736410243170,-500.0,9.993e-05,2]
[348235639,1736410243179,-1466.0,9.993e-05,2]
[348235641,1736410243190,-500.0,9.993e-05,2]
[348235643,1736410243199,-638.36,9.993e-05,2]
[348235645,1736410243209,-508.85,9.993e-05,2]
[348235647,1736410243219,-650.05,9.993e-05,2]
[348235649,1736410243228,-500.0,9.993e-05,2]
[348235651,1736410243237,-1000.0,9.993e-05,2]
[348235653,1736410243247,-500.0,9.993e-05,2]
[348235655,1736410243258,-500.0,9.993e-05,2]
[348235657,1736410243268,-1268.02,9.993e-05,2]
[348235659,1736410243277,-1303.73,9.993e-05,2]
[348235661,1736410243287,-200.0,9.994e-05,2]
[348235664,1736410243297,-500.0,9.999e-05,2]
[348235666,1736410243306,-500.0,9.999e-05,2]
[348235668,1736410243315,-500.0,9.999e-05,2]
[348235670,1736410243325,-500.0,9.999e-05,2]
[348235671,1736410243334,-219.48,9.999e-05,2]
[348235673,1736410243344,-500.0,9.999e-05,2]
[348235675,1736410243353,-500.0,9.999e-05,2]
[348235678,1736410243363,-500.0,9.999e-05,2]
[348235680,1736410243372,-500.0,9.999e-05,2]
[348235681,1736410243381,-894.21,9.999e-05,2]
[348235684,1736410243391,-1131.73,9.999e-05,2]
[348235685,1736410243401,-1814191.56591721,0.0001,2]
[348235687,1736410243412,-197.24960957,0.0001,2]
[348235689,1736410243422,-150.0,0.0001,2]
[348235692,1736410243432,-133878.0,0.0001,2]
[348235693,1736410243442,-311276.0,0.0001,2]
[348235695,1736410243452,-142916.81357509,0.0001,2]
[348235697,1736410243462,-170.49861168,0.0001,2]
[348235700,1736410243471,-172.6,0.0001,2]
[348235701,1736410243480,-1625.40784064,0.0001,2]
[348235702,1736410243489,-3000.0,0.0001,2]
[348235703,1736410243498,-1916.01198945,0.0001,2]
[348235704,1736410243508,-182.33,0.00010014,2]
[348235705,1736410243517,-150.0,0.000101,2]
[348235706,1736410243526,-150.0,0.000101,2]
[348235707,1736410243536,-150.24,0.00010113,2]
[348235708,1736410243545,-5972.96983225,0.00010134,4]
[348235709,1736410243555,-500.0,0.00010136,2]
[348235711,1736410243564,-738.45,0.00010137,2]
[348235713,1736410243573,-157.2,0.00010137,2]
[348235715,1736410243582,-150.0,0.000102,2]
[348235717,1736410243591,-984.07811708,0.0001025,2]
[348235719,1736410243600,-936.69,0.00010262,2]
[348235721,1736410243610,-3395.26,0.00010262,2]
[348235723,1736410243619,-500.0,0.00010262,2]
[348235725,1736410243628,-500.0,0.00010262,2]
[348235727,1736410243638,-500.0,0.00010262,2]
[348235729,1736410243647,-500.0,0.00010262,2]
[348235731,1736410243657,-1406.51,0.00010262,2]
[348235734,1736410243666,-1106.71,0.00010262,2]
[348235736,1736410243676,-500.0,0.00010262,2]
[348235738,1736410243684,-500.0,0.00010262,2]
[348235740,1736410243693,-2057.76,0.00010262,2]
[348235742,1736410243702,-500.0,0.00010262,2]
[348235744,1736410243711,-500.0,0.00010262,2]
[348235746,1736410243720,-543.222302,0.00010262,2]
[348235747,1736410243729,-1118.97,0.00010262,2]
[348235749,1736410243738,-699.61,0.00010262,2]
[348235751,1736410243747,-500.0,0.00010262,2]
[348235753,1736410243756,-892.54,0.00010262,2]
[348235755,1736410243766,-752.73,0.00010262,2]
[348235757,1736410243774,-669.31,0.00010262,2]
[348235759,1736410243783,-500.0,0.00010262,2]
[348235761,1736410243792,-1448.08,0.00010262,2]
[348235763,1736410243801,-500.0,0.00010262,2]
[348235765,1736410243810,-500.0,0.00010262,2]
[348235767,1736410243819,-529.79,0.00010262,2]
[348235769,1736410243828,-500.0,0.00010262,2]
[348235771,1736410243837,-500.0,0.00010262,2]
[348235773,1736410243846,-854.68,0.00010262,2]
[348235775,1736410243855,-582.31,0.00010262,2]
[348235777,1736410243864,-500.0,0.00010262,2]
[348235779,1736410243873,-500.0,0.00010262,2]
[348235781,1736410243883,-988.03,0.00010262,2]
[348235784,1736410243893,-500.0,0.00010262,2]
[348235786,1736410243902,-868.7,0.00010262,2]
[348235788,1736410243913,-500.0,0.00010262,2]
[348235790,1736410243923,-500.0,0.00010262,2]
[348235791,1736410243934,-500.0,0.00010262,2]
[348235794,1736410243944,-500.0,0.00010263,2]
[348235795,1736410243953,-500.0,0.00010263,2]
[348235797,1736410243962,-500.0,0.00010263,2]
[348235799,1736410243973,-500.0,0.00010263,2]
[348235802,1736410243983,-500.0,0.00010263,2]
[348235803,1736410243993,-500.0,0.00010263,2]
[348235805,1736410244003,-500.0,0.00010263,2]
[348235808,1736410244012,-2033.33,0.00010263,2]
[348235810,1736410244022,-500.0,0.00010263,2]
[348235812,1736410244031,-500.0,0.00010263,2]
[348235814,1736410244040,-500.0,0.00010263,2]
[348235816,1736410244050,-599.49513529,0.00010263,2]
[348235818,1736410244059,-500.0,0.00010263,2]
[348235820,1736410244068,-500.0,0.00010263,2]
[348235822,1736410244077,-500.0,0.00010263,2]
[348235823,1736410244086,-500.0,0.00010263,2]
[348235824,1736410244095,-500.0,0.00010263,2]
[348235825,1736410244103,-500.0,0.00010263,2]
[348235826,1736410244112,-500.0,0.00010263,2]
[348235827,1736410244121,-500.0,0.00010263,2]
[348235828,1736410244130,-572.56,0.00010263,2]
[348235829,1736410244139,-500.0,0.00010263,2]
[348235830,1736410244148,-500.0,0.00010263,2]
[348235831,1736410244159,-500.0,0.00010263,2]
[348235832,1736410244168,-514.82941288,0.00010263,2]
[348235833,1736410244177,-500.0,0.00010263,2]
[348235834,1736410244186,-500.0,0.00010263,2]
[348235835,1736410244196,-500.0,0.00010263,2]
[348235836,1736410244205,-500.0,0.00010263,2]
[348235837,1736410244216,-500.0,0.00010263,2]
[348235838,1736410244226,-324.92041479,0.00010263,2]
[348235839,1736410244235,-500.0,0.00010263,2]
[348235840,1736410244244,-500.0,0.00010263,2]
[348235842,1736410244254,-500.0,0.00010263,2]
[348235844,1736410244263,-500.0,0.00010263,2]
[348235846,1736410244272,-500.0,0.00010263,2]
[348235848,1736410244281,-500.0,0.00010263,2]
[348235850,1736410244290,-500.0,0.00010263,2]
[348235852,1736410244300,-500.0,0.00010263,2]
[348235854,1736410244309,-500.0,0.00010263,2]
[348235856,1736410244318,-500.0,0.00010263,2]
[348235858,1736410244327,-204.82068201,0.00010263,2]
[348235859,1736410244336,-500.0,0.00010263,2]
[348235861,1736410244345,-500.0,0.00010263,2]
[348235863,1736410244355,-500.0,0.00010263,2]
[348235865,1736410244364,-500.0,0.00010263,2]
[348235887,1736410244564,-500.0,0.00010263,2]
[348235889,1736410244574,-500.0,0.00010263,2]
[348235891,1736410244584,-500.0,0.00010263,2]
[348235893,1736410244594,-500.0,0.00010263,2]
[348235895,1736410244603,-500.0,0.00010263,2]
[348235897,1736410244612,-500.0,0.00010263,2]
[348235900,1736410244622,-500.0,0.00010263,2]
[348235902,1736410244631,-500.0,0.00010263,2]
[348235904,1736410244642,-500.0,0.00010263,2]
[348235905,1736410244651,-625.635031,0.00010263,2]
[348235907,1736410244662,-500.0,0.00010263,2]
[348235909,1736410244671,-500.0,0.00010263,2]
[348235912,1736410244681,-500.0,0.00010263,2]
[348235913,1736410244690,-500.0,0.00010263,2]
[348235915,1736410244699,-500.0,0.00010263,2]
[348235917,1736410244709,-500.0,0.00010263,2]
[348235919,1736410244719,-163.09406721,0.00010263,2]
[348235921,1736410244728,-695.42905,0.00010263,2]
[348235923,1736410244737,-587.75230671,0.00010263,2]
[348235925,1736410244747,-500.0,0.00010263,2]
[348235927,1736410244756,-500.0,0.00010263,2]
[348235929,1736410244765,-500.0,0.00010263,2]
[348235931,1736410244774,-500.0,0.00010263,2]
[348235933,1736410244783,-500.0,0.00010263,2]
[348235935,1736410244793,-500.0,0.00010263,2]
[348235937,1736410244802,-500.0,0.00010263,2]
[348235939,1736410244812,-500.0,0.00010263,2]